bitfinex-derivatives/quotes_ETHF0:USTF0_20240917
["timestamp","ask_amount","ask_price","bid_price","bid_amount"]
[1726599839075,0.42535,2350.4,2350.1,0.5613]
[1726599839282,0.42535,2350.5,2350.1,0.9867]
[1726599839479,0.42535,2350.5,2350.1,0.5613]
[1726599839681,0.42535,2350.5,2350.1,0.9867]
[1726599839977,1.06329,2350.6,2350.1,0.5613]
[1726599840276,1.48879,2350.3,2349.4,3.2078]
[1726599840477,7.2978,2350.4,2349.3,0.5852]
[1726599840478,0.42546,2349.8,2349.3,0.5852]
[1726599840779,2.183101,2349.9,2349.3,0.5852]
[1726599840976,0.4255,2349.6,2349.3,0.5852]
[1726599841376,0.5604,2349.7,2349.2,0.584]
[1726599841575,0.4255,2349.6,2349.2,0.584]
[1726599841875,0.42551,2349.6,2349.2,0.584]
[1726599842079,0.98588,2349.7,2349.3,3.2078]
[1726599842279,0.98588,2349.7,2349.2,0.584]
[1726599842280,0.42552,2349.5,2349.2,0.584]
[1726599842484,3.2078,2349.6,2349.2,0.584]
[1726599842485,0.42549,2349.6,2349.2,0.584]
[1726599842984,0.42551,2349.6,2349.2,0.584]
[1726599843181,7.2978,2349.3,2348.5,7.3868]
[1726599843387,1.06397,2349.1,2348.5,4.12893709]
[1726599843686,0.42567,2348.7,2348.4,0.5467]
[1726599843871,0.42569,2348.6,2348.2,0.5797]
[1726599844075,3.2078,2348.5,2347.7,4.38854452]
[1726599844281,0.42578,2348.1,2347.7,0.75491452]
[1726599844583,7.8516,2348.5,2347.6,0.5797]
[1726599844783,0.5928,2348.4,2347.6,3.7875]
[1726599844974,3.2078,2348.2,2347.6,3.7875]
[1726599845175,0.42573,2348.3,2347.6,4.21335]
[1726599845374,3.2078,2348.2,2347.5,3.2078]
[1726599845580,7.2978,2348.2,2347.5,3.2078]
[1726599845780,0.42579,2348.0,2347.4,0.76294707]
[1726599846185,0.42579,2348.0,2347.5,3.2078]
[1726599846386,0.42578,2348.1,2347.5,3.63367]
[1726599846889,0.42578,2348.1,2347.6,0.42586]
[1726599847180,0.42578,2348.1,2347.5,3.63366]
[1726599847372,0.42577,2348.1,2347.5,3.63366]
[1726599847575,3.2078,2348.2,2347.5,3.2078]
[1726599847780,0.42577,2348.1,2347.6,0.42586]
[1726599848084,3.2078,2348.2,2347.7,0.42583]
[1726599848278,4.6828,2348.4,2347.7,0.42583]
[1726599848481,4.6828,2348.4,2347.8,0.42581]
[1726599848683,1.01852,2348.4,2347.8,3.2078]
[1726599848881,0.5538,2348.5,2347.8,3.2078]
[1726599849187,0.5538,2348.5,2348.1,3.2078]
[1726599849188,0.42571,2348.4,2348.1,3.2078]
[1726599849384,0.9795,2348.5,2347.6,3.2078]
[1726599849585,0.9795,2348.5,2347.9,3.2078]
[1726599849586,0.5538,2348.5,2347.9,3.2078]
[1726599849889,4.1873,2348.5,2347.9,0.42579]
[1726599850189,4.1873,2348.5,2347.6,3.2078]
[1726599850190,0.42571,2348.4,2347.6,3.2078]
[1726599850490,3.7616,2348.5,2347.5,4.179]
[1726599850491,0.9795,2348.5,2348.0,0.42577]
[1726599850789,0.5538,2348.5,2348.1,0.42576]
[1726599850986,3.2078,2348.8,2347.9,3.2078]
[1726599851188,0.42565,2348.8,2348.3,0.42572]
[1726599851493,0.42564,2348.8,2348.3,0.42572]
[1726599851690,0.42566,2348.7,2348.3,0.42572]
[1726599852086,1.1397,2348.9,2348.2,3.2078]
[1726599852288,4.27193,2348.8,2348.2,3.2078]
[1726599852480,0.42571,2348.5,2348.1,0.42576]
[1726599852682,0.42571,2348.5,2348.2,0.42574]
[1726599852883,0.42568,2348.6,2348.2,0.42574]
[1726599853184,3.2078,2348.8,2348.2,3.2078]
[1726599853385,1.56533,2348.9,2348.2,3.2078]
[1726599853683,3.2078,2349.1,2348.5,3.2078]
[1726599853886,1.06385,2349.4,2348.9,3.2078]
[1726599853887,0.6049,2349.4,2348.9,3.2078]
[1726599854186,4.6949,2349.4,2348.8,0.42563]
[1726599854392,0.42557,2349.2,2348.9,0.4256]
[1726599854986,4.27172,2349.2,2348.6,0.595]
[1726599855289,0.42563,2348.9,2348.6,0.42567]
[1726599855492,0.42561,2349.0,2348.7,0.42564]
[1726599855685,0.42559,2349.1,2348.8,0.42564]
[1726599855880,0.5815,2349.3,2348.9,0.42561]
[1726599856191,1.64539,2349.3,2348.5,3.2078]
[1726599856398,0.42561,2349.0,2348.8,0.42564]
[1726599857381,0.42562,2348.9,2348.8,0.42564]
[1726599857684,4.27172,2349.2,2348.8,0.42563]
[1726599857883,0.42562,2348.9,2348.8,0.42563]
[1726599858188,0.42559,2349.1,2349.0,0.42558]
[1726599858784,3.2078,2349.2,2349.0,0.42558]
[1726599859000,0.5815,2349.3,2348.8,1.0641]
[1726599859190,1.66877,2349.4,2349.3,0.42555]
[1726599859191,0.6049,2349.4,2349.3,0.42555]
[1726599859899,0.6049,2349.4,2348.9,1.06406]
[1726599859900,1.03044,2349.4,2348.9,1.06406]
[1726599860198,1.03044,2349.4,2349.3,0.42555]
[1726599860395,0.42555,2349.3,2349.2,0.42556]
[1726599860697,0.42555,2349.3,2348.9,1.06403]
[1726599860990,0.42555,2349.3,2349.2,0.42557]
[1726599861196,4.6949,2349.4,2348.7,4.179]
[1726599861389,0.4256,2349.1,2349.0,0.4256]
[1726599861588,8.93123,2349.2,2348.5,1.06424]
[1726599861892,0.42562,2349.0,2348.9,0.42561]
[1726599862082,0.42563,2348.9,2348.8,0.42563]
[1726599862891,0.42568,2348.6,2348.5,0.42568]
[1726599863096,0.42569,2348.5,2348.4,4.179]
[1726599863393,1.0642,2348.6,2348.4,4.179]
[1726599863394,3.63349,2348.6,2348.5,0.42569]
[1726599863585,0.42569,2348.5,2348.4,4.6047]
[1726599863991,0.42569,2348.5,2348.4,4.179]
[1726599864187,4.19159,2348.6,2348.5,0.42569]
[1726599864391,0.42569,2348.5,2348.4,4.6047]
[1726599864889,0.98378,2348.6,2348.5,0.42569]
[1726599865498,0.42569,2348.5,2348.4,4.60469]
[1726599866901,0.42569,2348.5,2348.4,4.60471]
[1726599867589,0.98379,2348.6,2348.4,4.60471]
[1726599867789,0.5877,2348.8,2348.7,0.42566]
[1726599868196,0.42559,2349.1,2348.7,4.2576]
[1726599868401,0.42559,2349.1,2348.6,4.27198]
[1726599868699,4.22478,2349.2,2349.0,0.42559]
[1726599868995,4.22478,2349.2,2348.7,1.06415]
[1726599868996,0.5914,2349.2,2349.1,0.42558]
[1726599869997,1.65796,2349.6,2349.1,1.06395]
[1726599869998,0.5914,2349.6,2349.1,1.06395]
[1726599870196,0.42552,2349.5,2349.1,1.06395]
[1726599870403,0.42551,2349.5,2349.1,1.06395]
[1726599870601,0.42551,2349.5,2349.0,0.5764]
[1726599870797,0.5914,2349.6,2349.1,1.06396]
[1726599871100,1.0169,2349.6,2349.4,0.42552]
[1726599871889,1.01689,2349.6,2349.4,0.42552]
[1726599872498,3.2078,2349.7,2349.6,0.42549]
[1726599872692,3.63328,2349.7,2349.5,0.4255]
[1726599873093,3.2078,2349.7,2349.5,0.4255]
[1726599873293,3.2078,2349.7,2349.1,1.66196]
[1726599873294,3.2078,2349.7,2349.4,0.42552]
[1726599873704,3.2078,2349.7,2349.3,0.42553]
[1726599874015,3.2078,2349.7,2349.1,0.598]
[1726599874016,3.2078,2349.7,2349.4,0.42552]
[1726599874502,3.2078,2349.7,2349.5,0.42551]
[1726599875388,3.2078,2349.7,2349.6,0.42549]
[1726599876396,0.5986,2349.9,2349.8,0.42546]
[1726599876592,1.6319925,2350.1,2349.7,1.06366]
[1726599876796,0.5544,2350.2,2350.1,0.4254]
[1726599877199,0.5787,2350.3,2350.2,0.42538]
[1726599878408,0.5787,2350.3,2350.1,0.42539]
[1726599878705,0.5787,2350.3,2350.2,0.42538]
[1726599879706,0.5787,2350.3,2349.9,3.2078]
[1726599880005,0.5787,2350.3,2349.7,1.1767]
[1726599880202,0.5787,2350.3,2350.0,0.42541]
[1726599880401,0.5787,2350.3,2349.8,3.2078]
[1726599880603,0.5787,2350.3,2350.1,0.42539]
[1726599881102,0.5787,2350.3,2349.7,5.44818]
[1726599881103,0.5787,2350.3,2350.2,0.42538]
[1726599883298,2.1863925,2350.6,2349.9,1.06359]
[1726599883506,2.7542925,2350.6,2350.3,0.42536]
[1726599883711,1.1223,2350.6,2350.3,0.42536]
[1726599884307,1.1223,2350.6,2350.2,0.42537]
[1726599884513,1.1223,2350.6,2350.0,1.06355]
[1726599884810,1.1223,2350.6,2349.9,1.06359]
[1726599884811,1.1223,2350.6,2350.4,0.42534]
[1726599885109,1.1223,2350.6,2350.5,0.42533]
[1726599885698,0.5679,2350.6,2350.5,0.42533]
[1726599885902,4.3558,2351.0,2350.4,1.06338]
[1726599886210,0.5545,2350.9,2350.7,0.42529]
[1726599886402,0.5545,2350.9,2350.6,0.4253]
[1726599886714,0.5545,2350.9,2350.3,1.1403]
[1726599886905,0.5545,2350.9,2350.6,0.4253]
[1726599888411,0.5545,2350.9,2350.7,0.42529]
[1726599888711,0.5545,2350.9,2350.3,2.20371]
[1726599888712,0.5545,2350.9,2350.6,0.4253]
[1726599889212,0.5545,2350.9,2350.7,0.42529]
[1726599889414,0.5545,2350.9,2350.6,0.4253]
[1726599890613,0.5545,2350.9,2350.4,3.2078]
[1726599890812,0.5545,2350.9,2350.6,0.4253]
[1726599892307,0.5545,2350.9,2350.7,0.42529]
[1726599892512,0.5545,2350.9,2350.7,0.42528]
[1726599892707,0.5545,2350.9,2350.5,1.06333]
[1726599892708,0.5545,2350.9,2350.8,0.42528]
[1726599893515,0.5545,2350.9,2350.5,4.27113]
[1726599893712,0.5545,2350.9,2350.7,0.42528]
[1726599894218,0.5545,2350.9,2350.6,0.4253]
[1726599894414,3.32,2350.8,2350.3,2.54338767]
[1726599894621,3.32,2350.8,2350.5,0.42531]
[1726599894815,3.32,2350.8,2350.6,0.42531]
[1726599895019,3.32,2350.7,2350.4,0.42534]
[1726599895915,3.74529,2350.7,2350.4,0.42534]
[1726599896506,3.74529,2350.7,2350.5,0.42533]
[1726599896507,3.32,2350.7,2350.5,0.42533]
[1726599896815,1.61766,2350.9,2350.8,0.42528]
[1726599896816,0.5545,2350.9,2350.8,0.42528]
[1726599897313,0.5545,2350.9,2350.6,3.2078]
[1726599897314,0.5545,2350.9,2350.7,0.42528]
[1726599898307,0.5545,2350.9,2350.6,0.4253]
[1726599899120,0.5545,2350.9,2350.3,0.5522]
[1726599899121,4.18756,2350.9,2350.3,0.5522]
[1726599899319,4.18756,2350.9,2350.6,0.42531]
[1726599899811,4.18756,2350.9,2350.7,0.42529]
[1726599900011,3.32,2350.8,2350.6,0.4253]
[1726599900213,4.82545,2350.9,2350.2,7.72069079]
[1726599900413,0.42529,2350.8,2350.2,8.78415079]
[1726599900620,0.42528,2350.8,2350.3,1.06342]
[1726599900921,5.8195625,2350.9,2350.6,0.42531]
[1726599901322,4.18757,2350.9,2350.7,0.42529]
[1726599901514,3.7623,2350.9,2350.4,1.06338]
[1726599901715,0.42528,2350.8,2350.6,0.42531]
[1726599902020,3.7623,2350.9,2350.6,0.42531]
[1726599902220,3.7623,2350.9,2350.2,8.78416079]
[1726599902425,3.2078,2350.6,2350.2,4.179]
[1726599902615,0.5605,2350.5,2350.3,0.42535]
[1726599902921,0.5675,2350.4,2350.3,0.42535]
[1726599903428,0.5675,2350.4,2350.3,0.42537]
[1726599903719,11.8853,2350.4,2349.5,4.27157]
[1726599904031,11.8853,2350.4,2349.0,0.5665]
[1726599904032,5.7311253,2349.8,2349.0,0.5665]
[1726599904219,3.3435253,2349.7,2349.2,0.42556]
[1726599904517,3.3435253,2349.7,2349.3,0.42554]
[1726599904712,1.7024,2349.7,2349.0,0.5665]
[1726599904911,2.12788,2349.7,2349.3,0.42554]
[1726599905111,2.12788,2349.7,2349.0,0.5665]
[1726599905112,1.1076,2349.7,2349.1,3.2078]
[1726599905314,0.5571,2349.7,2349.6,0.42549]
[1726599905510,2.61355707,2350.2,2349.8,0.42544]
[1726599905511,5.3994253,2350.2,2349.8,0.42544]
[1726599905829,0.5571,2350.1,2349.8,0.42544]
[1726599906524,0.5571,2350.1,2349.5,3.7743]
[1726599906825,0.5571,2350.1,2349.8,3.63325]
[1726599907217,0.5571,2350.1,2349.8,0.42545]
[1726599907921,0.5571,2350.1,2349.9,0.42543]
[1726599910121,1.6411253,2350.6,2349.9,7.463]
[1726599910316,1.6411253,2350.6,2350.0,1.1146]
[1726599910317,0.5835,2350.5,2350.0,1.1146]
[1726599910626,0.5835,2350.5,2350.3,0.42536]
[1726599910817,0.5835,2350.5,2350.4,0.42535]
[1726599911017,3.2078,2350.8,2350.2,3.2078]
[1726599911218,0.5835,2350.8,2350.5,3.2078]
[1726599911516,0.5835,2350.8,2350.6,0.4253]
[1726599911722,0.5835,2350.8,2350.3,3.2078]
[1726599911921,0.5835,2350.8,2350.7,0.42529]
[1726599912118,0.5835,2350.8,2350.3,3.2078]
[1726599912119,0.5835,2350.8,2350.6,0.4253]
[1726599912626,0.5835,2350.8,2350.7,0.42529]
[1726599913026,0.5835,2350.8,2350.2,1.06344]
[1726599913221,0.5835,2350.8,2350.6,0.4253]
[1726599914224,0.5835,2350.8,2350.3,3.2078]
[1726599914225,0.5835,2350.8,2350.7,0.42529]
[1726599916025,0.5835,2350.8,2350.6,0.4253]
[1726599916329,0.5835,2350.8,2350.3,3.2078]
[1726599916519,1.6411253,2350.7,2350.1,4.5201622]
[1726599916719,1.6411253,2350.6,2350.4,0.42534]
[1726599917024,1.6411253,2350.6,2350.5,0.42533]
[1726599917225,1.6411253,2350.7,2350.6,0.42531]
[1726599917533,5.4324253,2350.8,2350.7,0.42529]
[1726599917822,5.4324253,2350.8,2350.6,0.4253]
[1726599918220,5.4324253,2350.8,2350.7,0.42529]
[1726599918415,2.2246253,2350.8,2350.7,0.42529]
[1726599919625,2.2246253,2350.8,2350.6,0.4253]
[1726599919824,2.2246253,2350.8,2350.4,3.2078]
[1726599919825,2.2246253,2350.8,2350.7,0.42529]
[1726599920420,2.2246253,2350.8,2350.7,3.63309]
[1726599920421,0.5835,2350.8,2350.7,3.63309]
[1726599920925,0.5835,2350.8,2350.7,0.42529]
[1726599921122,2.77166707,2350.8,2350.7,0.42529]
[1726599923125,0.5835,2350.8,2350.4,3.2078]
[1726599923327,0.42537,2350.3,2350.1,4.60439]
[1726599923535,2.24495236,2350.2,2350.1,4.6044]
[1726599923827,2.24495236,2350.2,2350.1,4.179]
[1726599923828,0.5917,2350.2,2350.1,4.179]
[1726599924126,3.32690884,2350.2,2350.1,4.6044]
[1726599924433,3.32690884,2350.2,2350.1,4.179]
[1726599924623,3.75228884,2350.2,2350.1,4.179]
[1726599924822,3.32690884,2350.2,2350.1,4.6044]
[1726599925121,0.5917,2350.2,2350.1,4.6044]
[1726599925326,2.79675634,2350.2,2350.1,4.6044]
[1726599925530,0.5917,2350.2,2350.1,4.6044]
[1726599925922,3.32690884,2350.2,2350.1,4.179]
[1726599926321,3.32690884,2350.2,2350.1,4.6044]
[1726599927226,2.79766483,2350.2,2350.1,4.6044]
[1726599927539,2.79712793,2350.2,2350.1,0.4254]
[1726599927724,2.79712793,2350.2,2350.1,8.0006]
[1726599927725,1.65399684,2350.2,2350.1,8.0006]
[1726599927927,1.65399684,2350.3,2350.2,0.42538]
[1726599928227,2.20542793,2350.4,2350.1,7.5752]
[1726599928228,1.65399684,2350.4,2350.3,0.42537]
[1726599928930,1.65399684,2350.5,2350.4,0.42535]
[1726599930926,2.63075793,2350.5,2350.3,0.42535]
[1726599931129,1.65456618,2350.4,2350.3,0.42535]
[1726599931335,1.65456618,2350.4,2350.2,0.42538]
[1726599931638,2.24366618,2350.3,2350.2,0.42538]
[1726599932524,2.66903618,2350.3,2350.2,0.42538]
[1726599932725,2.24366618,2350.3,2350.2,0.42538]
[1726599936141,1.65456618,2350.3,2350.2,12.80752]
[1726599936329,0.5493,2350.7,2350.6,0.42531]
[1726599938941,0.5493,2350.7,2350.6,3.74531]
[1726599939140,0.5493,2350.7,2350.6,4.8086]
[1726599939435,2.77302793,2351.0,2350.9,0.42526]
[1726599939829,0.5676,2351.0,2350.9,0.42526]
[1726599941545,2.78512793,2351.2,2351.1,0.42522]
[1726599941739,0.5797,2351.2,2351.1,6.95302]
[1726599942240,0.5813,2351.4,2351.3,0.42519]
[1726599943843,0.5813,2351.4,2351.1,3.2078]
[1726599943844,4.8341,2351.4,2351.1,3.2078]
[1726599944041,1.00647,2351.4,2351.1,3.63301]
[1726599944239,0.42519,2351.3,2351.1,3.2078]
[1726599944433,0.42521,2351.2,2350.7,3.2078]
[1726599944633,0.42521,2351.2,2350.9,0.42525]
[1726599944944,2.78672793,2351.4,2351.2,0.42519]
[1726599945143,1.00647,2351.4,2351.1,3.74521]
[1726599945442,0.5813,2351.4,2351.2,0.4252]
[1726599946143,0.5813,2351.4,2351.0,3.2078]
[1726599946340,0.5813,2351.4,2351.3,0.42519]
[1726599946742,0.5813,2351.4,2351.2,0.4252]
[1726599946940,0.5813,2351.4,2351.3,0.42519]
[1726599947346,0.5813,2351.4,2351.2,0.42519]
[1726599947643,0.5813,2351.4,2351.3,0.42519]
[1726599949046,0.5813,2351.4,2351.1,4.08]
[1726599949652,0.5813,2351.4,2351.3,0.42519]
[1726599951355,2.78672793,2351.4,2351.0,4.8168]
[1726599951554,2.78672793,2351.4,2351.3,0.42519]
[1726599953455,2.78656874,2351.4,2351.3,0.42519]
[1726599955451,0.5813,2351.4,2351.3,0.42519]
[1726599956156,3.31650884,2351.4,2351.3,0.42519]
[1726599956354,5.89703,2351.4,2351.1,0.42522]
[1726599956563,2.63253011,2351.2,2350.8,1.06316]
[1726599956762,2.6325202,2351.2,2350.8,1.06316]
[1726599957057,2.2073202,2351.1,2351.0,0.42522]
[1726599957261,2.6325202,2351.2,2350.8,1.06316]
[1726599957449,2.20682269,2351.1,2350.7,3.2078]
[1726599957762,0.42525,2351.0,2350.9,0.42526]
[1726599958056,0.42525,2351.0,2350.6,4.27109]
[1726599958351,0.5919,2350.9,2350.8,0.42526]
[1726599958552,0.5919,2350.9,2350.4,5.82297]
[1726599958553,0.42529,2350.8,2350.4,5.82297]
[1726599958756,1.56738,2350.9,2350.7,0.42528]
[1726599959056,1.56737,2350.9,2350.7,0.42528]
[1726599959460,1.56737,2350.9,2350.8,0.42528]
[1726599959653,1.1421,2350.9,2350.8,0.42528]
[1726599960060,0.5919,2350.9,2350.8,0.42528]
[1726599960650,0.42528,2350.8,2350.5,4.08]
[1726599960851,0.42528,2350.8,2350.6,0.4253]
[1726599961053,1.06324,2350.7,2350.1,1.62611]
[1726599961360,1.06324,2350.7,2350.4,0.42534]
[1726599961361,0.5794,2350.6,2350.4,0.42534]
[1726599961745,0.42533,2350.5,2350.4,0.42534]
[1726599961961,4.8338,2350.6,2350.4,0.42534]
[1726599961962,5.25912,2350.6,2350.4,0.42534]
[1726599962859,0.5794,2350.6,2350.5,0.42533]
[1726599963359,2.20655262,2350.8,2350.7,0.42529]
[1726599963652,0.5919,2350.9,2350.4,1.06337]
[1726599963857,2.79845262,2350.9,2350.6,0.4253]
[1726599964067,2.79845262,2350.9,2350.3,3.2078]
[1726599964068,3.86162262,2350.9,2350.3,4.2712]
[1726599964260,0.42529,2350.8,2350.7,0.42529]
[1726599964656,0.42529,2350.8,2350.3,4.2712]
[1726599964657,4.2536,2350.8,2350.6,0.4253]
[1726599964850,0.42528,2350.8,2350.7,0.42529]
[1726599965263,0.42532,2350.6,2350.5,0.42533]
[1726599965460,3.2078,2350.7,2350.1,0.42539]
[1726599965653,3.2078,2350.7,2349.8,4.179]
[1726599965654,0.42544,2349.9,2349.8,4.179]
[1726599965851,0.42543,2350.0,2349.7,0.42547]
[1726599966062,1.1735,2349.9,2349.7,0.42547]
[1726599966658,1.1735,2349.9,2349.8,0.42546]
[1726599966961,0.5893,2349.9,2349.8,0.42546]
[1726599967962,0.5893,2349.9,2349.6,3.2078]
[1726599968171,0.5893,2349.9,2348.8,4.31323895]
[1726599968172,6.5278,2349.7,2348.8,4.31323895]
[1726599968466,4.256,2349.8,2348.9,0.42561]
[1726599968467,8.72824447,2349.4,2348.9,0.42561]
[1726599968659,0.5834,2349.3,2348.8,0.42563]
[1726599968861,2.78384447,2349.3,2348.6,0.42566]
[1726599969065,3.63339,2349.1,2348.7,0.42565]
[1726599969272,3.32,2349.2,2348.5,3.8947]
[1726599969273,0.42561,2349.0,2348.6,0.42566]
[1726599969767,0.42561,2349.0,2348.7,0.42565]
[1726599970364,3.2078,2349.2,2348.8,0.42563]
[1726599970562,3.2078,2349.2,2348.6,3.2078]
[1726599970761,0.4256,2349.0,2348.7,0.42565]
[1726599971863,0.4256,2349.0,2348.6,3.2078]
[1726599972063,3.2078,2349.2,2348.9,0.42561]
[1726599972064,3.63338,2349.2,2348.9,0.42561]
[1726599972763,0.42559,2349.1,2348.9,0.42561]
[1726599973163,0.42559,2349.1,2348.8,0.42563]
[1726599973465,3.2078,2349.2,2348.9,0.42562]
[1726599973765,3.2078,2349.2,2349.0,0.42559]
[1726599974063,0.42557,2349.2,2349.0,0.42558]
[1726599974365,1.00896,2349.3,2349.0,0.42558]
[1726599974562,0.42557,2349.2,2349.0,0.42558]
[1726599974765,0.5834,2349.3,2349.0,0.42558]
[1726599974964,3.2078,2349.2,2348.8,0.42563]
[1726599975158,0.4256,2349.1,2348.8,0.42563]
[1726599975358,0.4256,2349.1,2348.9,0.42562]
[1726599975762,3.2078,2349.2,2348.6,3.2078]
[1726599975763,0.42562,2349.0,2348.8,0.42564]
[1726599975958,0.42558,2349.1,2348.9,0.42562]
[1726599976162,0.4256,2349.0,2348.9,0.42562]
[1726599976355,3.2078,2349.2,2348.5,4.7537]
[1726599976356,0.42563,2348.9,2348.5,4.7537]
[1726599976559,0.42561,2349.0,2348.8,0.42564]
[1726599976758,0.42559,2349.1,2349.0,0.4256]
[1726599977059,0.42559,2349.1,2348.9,0.42561]
[1726599977560,0.42559,2349.1,2348.6,1.06419]
[1726599977760,0.42559,2349.1,2348.9,0.42561]
[1726599977962,0.42562,2349.0,2348.5,7.9615]
[1726599978367,0.42562,2349.0,2348.8,0.42562]
[1726599978960,0.42559,2349.1,2348.9,0.42561]
[1726599979164,0.5591,2349.2,2349.0,0.4256]
[1726599979165,0.98468,2349.2,2349.0,0.4256]
[1726599979369,0.42561,2349.0,2348.5,7.9615]
[1726599979580,0.42563,2348.9,2348.7,0.42564]
[1726599979763,1.064,2349.1,2348.5,7.9615]
[1726599979962,0.42564,2348.8,2348.7,0.42565]
[1726599980163,1.064,2349.1,2348.5,5.17939]
[1726599980164,0.42567,2348.6,2348.5,5.17939]
[1726599980360,0.42567,2348.6,2348.5,0.5747]
[1726599980566,0.42567,2348.6,2348.5,0.42569]
[1726599980865,0.42567,2348.6,2348.2,3.2078]
[1726599980866,1.01567,2348.7,2348.6,0.42567]
[1726599981960,0.59,2348.7,2348.6,0.42567]
[1726599982272,1.01566,2348.7,2348.6,0.42567]
[1726599982768,0.59,2348.7,2348.6,0.42567]
[1726599983169,0.5548,2349.0,2348.5,3.2078]
[1726599983375,0.42565,2348.8,2348.7,0.42566]
[1726599983564,3.2078,2348.8,2348.3,3.2078]
[1726599983875,0.42565,2348.8,2348.7,0.42565]
[1726599984067,0.42562,2348.9,2348.8,0.42563]
[1726599984967,0.42563,2348.9,2348.8,0.42563]
[1726599985265,0.42554,2349.4,2348.9,1.06406]
[1726599985466,1.0974,2349.6,2348.7,3.7095]
[1726599985770,1.0974,2349.6,2348.9,0.42561]
[1726599985771,0.42559,2349.1,2348.9,0.42561]
[1726599985960,1.06388,2349.3,2349.0,0.4256]
[1726599986165,1.06384,2349.4,2348.7,4.27194]
[1726599986374,0.42556,2349.3,2348.8,1.0641]
[1726599986578,1.06384,2349.4,2349.1,0.42557]
[1726599986966,0.42556,2349.3,2349.1,0.42557]
[1726599987169,0.42557,2349.2,2349.1,0.42557]
[1726599987573,0.42555,2349.3,2349.1,0.42557]
[1726599987869,3.2078,2349.5,2348.7,3.2078]
[1726599987870,0.42557,2349.2,2348.7,3.2078]
[1726599988061,3.2078,2349.5,2348.7,3.2078]
[1726599988261,0.42557,2349.2,2348.7,3.2078]
[1726599988461,0.42556,2349.3,2349.1,0.42558]
[1726599988665,0.42557,2349.2,2349.1,0.42558]
[1726599988870,0.42556,2349.3,2349.1,0.42558]
[1726599990270,0.42557,2349.2,2349.1,0.42558]
[1726599990476,1.06383,2349.4,2349.1,0.42558]
[1726599990477,0.42556,2349.3,2349.1,0.42558]
[1726599990671,0.42557,2349.2,2349.1,0.42558]
[1726599990972,0.42556,2349.3,2349.1,0.42558]
[1726599991170,0.42555,2349.3,2348.8,1.06409]
[1726599991473,0.42555,2349.3,2349.2,0.42555]
[1726599992175,0.42554,2349.4,2349.3,0.42554]
[1726599992672,1.0974,2349.6,2349.1,1.62666]
[1726599992876,0.42552,2349.5,2349.4,0.42552]
[1726599993374,0.42548,2349.7,2349.6,0.42548]
[1726599993572,0.4255,2349.6,2349.5,0.4255]
[1726599993772,0.4255,2349.6,2349.2,4.27172]
[1726599993773,0.42549,2349.7,2349.6,0.42549]
[1726599994278,0.42548,2349.7,2349.6,0.42548]
[1726599998178,0.5712,2349.9,2349.8,0.42546]
[1726599998384,4.3558,2350.1,2350.0,0.42542]
[1726599998385,4.78121,2350.1,2350.0,0.42542]
[1726599998581,4.78121,2350.1,2349.9,0.42543]
[1726599998582,0.42543,2350.0,2349.9,0.42543]
[1726599999288,1.148,2350.1,2350.0,0.42542]
[1726599999782,1.5734,2350.1,2350.0,0.42542]
[1726600000580,3.2078,2350.2,2350.1,0.4254]
[1726600000785,2.76684,2350.5,2350.2,0.42537]
[1726600000989,0.42537,2350.3,2350.2,0.42538]
[1726600001384,4.9113,2350.5,2350.0,1.06355]
[1726600001599,1.1109,2350.5,2350.4,0.42535]
[1726600001783,0.5926,2350.9,2350.6,0.42531]
[1726600001976,1.55028,2350.8,2350.6,0.42531]
[1726600002688,4.3328,2350.8,2350.3,7.1213]
[1726600002889,0.42531,2350.6,2350.4,0.42534]
[1726600003184,0.42531,2350.7,2350.3,3.8013]
[1726600003390,0.42531,2350.7,2350.4,0.42533]
[1726600003597,0.42531,2350.6,2350.4,0.42533]
[1726600004483,0.42531,2350.7,2350.5,0.42533]
[1726600004787,0.42529,2350.7,2350.5,0.42533]
[1726600005383,0.42532,2350.6,2350.4,0.42534]
[1726600005990,0.42532,2350.6,2350.5,0.42533]
[1726600006193,0.42531,2350.7,2350.5,0.42533]
[1726600006489,5.39601,2350.8,2350.5,0.42533]
[1726600006490,0.42531,2350.6,2350.5,0.42533]
[1726600006986,4.3328,2350.8,2350.6,0.42531]
[1726600007190,0.4253,2350.7,2350.5,0.42532]
[1726600007690,0.4253,2350.7,2350.6,0.42531]
[1726600007884,0.42532,2350.6,2350.3,3.8013]
[1726600008087,1.125,2350.8,2350.4,0.42534]
[1726600008088,7.03587168,2350.8,2350.4,0.42534]
[1726600008283,0.42534,2350.5,2350.4,0.42535]
[1726600008587,1.06324,2350.7,2350.4,0.42535]
[1726600008588,0.42533,2350.6,2350.4,0.42535]
[1726600008785,0.42531,2350.6,2350.5,0.42533]
[1726600009891,0.42531,2350.7,2350.3,3.8013]
[1726600010086,1.125,2350.8,2350.4,1.06338]
[1726600010288,1.125,2350.8,2350.3,7.1213]
[1726600010289,2.06512168,2351.0,2350.9,0.42526]
[1726600010491,2.79857168,2351.1,2350.9,0.42526]
[1726600010795,2.19827244,2351.0,2350.8,0.42527]
[1726600010989,0.42526,2350.9,2350.8,0.42527]
[1726600011193,2.62352244,2351.0,2350.8,0.42527]
[1726600011497,0.42526,2350.9,2350.5,4.27113]
[1726600011686,1.64857471,2350.8,2350.7,0.42529]
[1726600012189,1.64857471,2350.8,2350.5,4.27113]
[1726600012190,2.07383471,2350.9,2350.8,0.42528]